bitfinex/quotes_ETHUSD_20241106
["timestamp","ask_amount","ask_price","bid_price","bid_amount"]
[1730865741218,4.318629,2592.8,2592.2,3.85661179]
[1730865741449,0.461689,2592.8,2592.1,4.64566]
[1730865741578,0.7601,2593.0,2592.1,4.64566]
[1730865741778,3.85692,2592.8,2592.1,4.64566]
[1730865742011,4.61669,2593.0,2592.3,3.85747]
[1730865742212,8.47334,2593.0,2592.3,3.85747]
[1730865742517,3.85669,2592.9,2592.3,3.85747]
[1730865742721,0.847338,2592.9,2592.1,3.85777]
[1730865742887,0.7601,2593.0,2592.4,3.85736]
[1730865743094,0.43830657,2593.3,2592.4,0.7879]
[1730865743297,0.7601,2593.1,2592.4,3.85732]
[1730865743820,3.85663,2593.0,2592.4,3.85732]
[1730865743992,3.85657,2593.0,2592.4,3.85732]
[1730865744180,4.703861,2593.0,2592.4,3.85732]
[1730865744376,0.847291,2593.0,2592.3,5.50103924]
[1730865744679,3.85653,2593.0,2592.0,0.7879]
[1730865744903,3.85723,2592.6,2592.0,0.7879]
[1730865745088,3.85723,2592.6,2592.0,0.8650521]
[1730865745279,0.7601,2593.1,2592.0,0.8650521]
[1730865745476,3.85677,2592.9,2592.3,5.50103924]
[1730865745717,0.84733,2592.9,2592.4,3.85739]
[1730865746085,0.84733,2592.9,2592.3,5.50103924]
[1730865746285,0.84733,2592.9,2592.3,5.57818011]
[1730865746490,4.61653,2593.1,2592.4,3.85741]
[1730865746804,4.61653,2593.1,2592.5,3.85713]
[1730865747024,4.61653,2593.1,2592.4,3.93455088]
[1730865747025,0.1256361,2593.4,2592.8,3.85671]
[1730865747242,0.7601,2593.3,2592.0,0.88448849]
[1730865747401,0.7601,2593.1,2592.0,0.09658849]
[1730865747583,0.7601,2593.1,2592.5,3.85726]
[1730865747924,3.85663,2593.0,2592.4,4.72236969]
[1730865748127,0.1256361,2593.4,2592.8,3.85673]
[1730865748128,0.8857361,2593.4,2592.8,3.85673]
[1730865748294,4.7416761,2593.4,2592.8,3.85673]
[1730865748513,4.7416761,2593.4,2592.6,3.85713]
[1730865748514,4.63037761,2593.3,2592.6,3.857]
[1730865748711,0.1256361,2593.4,2593.0,0.8208]
[1730865748954,0.7868,2594.6,2593.7,4.67623]
[1730865749102,0.60370379,2594.8,2594.5,3.8543]
[1730865749300,0.60370379,2594.8,2594.2,3.85466]
[1730865749501,3.85371,2594.9,2593.7,0.8208]
[1730865749830,0.60368801,2594.7,2594.1,9.35585924]
[1730865750039,0.60368801,2594.7,2594.3,3.85457]
[1730865750343,0.7868,2595.0,2594.3,3.85457]
[1730865750837,0.7868,2595.0,2594.5,9.35523924]
[1730865750999,0.7868,2595.0,2594.5,9.35533924]
[1730865751400,1.31116348,2595.0,2594.4,3.85443]
[1730865751624,1.31116348,2595.0,2593.9,4.40511]
[1730865751625,3.85396,2594.8,2594.0,3.85492]
[1730865752034,3.85396,2594.8,2594.1,3.85488]
[1730865752345,3.85396,2594.8,2594.0,3.85492]
[1730865752346,5.16474348,2595.0,2594.2,3.85472]
[1730865752644,3.85387,2594.8,2594.0,3.85492]
[1730865752937,3.85434,2594.5,2593.9,5.50103924]
[1730865753136,3.85434,2594.5,2593.9,9.35620924]
[1730865753303,3.85446,2594.4,2593.9,5.50103924]
[1730865753502,3.85486,2594.2,2593.5,5.50103924]
[1730865753751,3.855,2594.1,2593.5,5.50103924]
[1730865754041,4.624868,2594.7,2594.0,3.85492]
[1730865754239,4.624868,2594.7,2593.9,6.32183924]
[1730865754443,4.64159,2594.2,2593.9,5.50103924]
[1730865754645,3.8553,2593.9,2593.4,5.50103924]
[1730865754939,1.18865532,2594.6,2593.9,3.85516]
[1730865755113,0.7868,2594.9,2594.4,5.50103924]
[1730865755442,3.85443,2594.5,2594.0,5.50103924]
[1730865755736,0.7868,2594.9,2594.4,5.50103924]
[1730865755737,4.64058,2594.9,2594.4,5.50103924]
[1730865756072,4.64058,2594.9,2594.2,5.50103924]
[1730865756073,3.8541,2594.7,2594.2,5.50103924]
[1730865756855,3.85366,2595.0,2594.5,5.47465727]
[1730865757039,3.85355,2595.1,2594.5,5.47465727]
[1730865757211,4.64075,2594.8,2594.2,3.85468]
[1730865757410,4.64075,2594.8,2594.1,3.85483]
[1730865758209,4.64075,2594.8,2594.0,5.47465727]
[1730865758210,3.85431,2594.5,2594.0,5.47465727]
[1730865758434,3.85458,2594.4,2593.8,0.8208]
[1730865758618,4.240178,2594.3,2593.7,3.85543]
[1730865758821,0.385366,2594.9,2594.3,3.85457]
[1730865759023,3.85382,2594.9,2594.2,3.85464]
[1730865759245,3.8539,2594.8,2594.0,9.32969727]
[1730865759965,3.85387,2594.8,2594.2,3.85474]
[1730865760148,0.7868,2595.0,2594.0,9.32968727]
[1730865760323,3.85411,2594.7,2594.0,9.32968727]
[1730865760529,0.770808,2594.6,2594.0,9.32968727]
[1730865760729,3.85397,2594.8,2594.0,9.32960727]
[1730865760936,3.85366,2595.0,2594.4,5.47465727]
[1730865761140,0.7868,2594.6,2594.0,5.47465727]
[1730865761362,3.8543,2594.5,2594.0,5.47465727]
[1730865761723,3.85484,2594.2,2594.0,5.47465727]
[1730865762350,3.85445,2594.4,2594.0,5.47465727]
[1730865762351,3.8545,2594.4,2594.0,5.47465727]
[1730865762748,4.31863,2594.4,2594.0,5.47465727]
[1730865762965,0.41165429,2595.0,2594.1,0.8208]
[1730865762966,4.25522429,2595.0,2594.1,0.8208]
[1730865763266,3.85413,2594.7,2594.4,5.47465727]
[1730865763764,4.64057,2594.9,2594.4,5.47465727]
[1730865763963,4.6406,2594.9,2594.4,5.47465727]
[1730865764329,3.80401,2594.7,2594.4,5.47465727]
[1730865764666,3.8538,2594.9,2594.4,5.47465727]
[1730865765025,4.624529,2594.9,2594.4,5.47465727]
[1730865765839,3.85404,2594.7,2594.4,5.47465727]
[1730865766164,4.624529,2594.9,2594.2,3.85475]
[1730865766165,0.770729,2594.9,2594.2,3.85475]
[1730865766368,3.85373,2594.9,2594.2,3.85465]
[1730865766828,3.85405,2594.7,2594.1,0.8208]
[1730865767325,0.7721,2594.6,2593.9,5.47679058]
[1730865767530,3.85451,2594.4,2593.9,5.47679058]
[1730865767774,3.85505,2594.0,2593.5,6.25359058]
[1730865767942,0.7721,2594.4,2593.5,5.47679058]
[1730865768270,3.85529,2593.9,2593.5,5.47679058]
[1730865768834,3.8555,2593.7,2593.5,5.47679058]
[1730865769066,7.71112,2593.7,2593.2,0.7768]
[1730865769276,3.8555,2593.7,2593.2,0.7768]
[1730865769563,3.85567,2593.6,2593.2,0.7768]
[1730865769779,3.85597,2593.4,2592.9,0.7768]
[1730865769976,3.85597,2593.4,2592.7,5.47679058]
[1730865770154,3.8555,2593.7,2593.1,5.47679058]
[1730865770487,3.85611,2593.3,2593.1,5.47679058]
[1730865770630,3.8558,2593.5,2593.1,5.47679058]
[1730865770832,4.24138,2593.5,2593.1,5.47679058]
[1730865771116,3.8564,2593.1,2592.7,5.47679058]
[1730865771415,0.7721,2593.2,2592.7,5.47679058]
[1730865771697,3.85651,2593.1,2592.7,5.47679058]
[1730865771912,3.85668,2593.0,2592.5,0.07713617]
[1730865772210,3.85723,2592.6,2591.9,9.33494058]
[1730865772360,0.7721,2593.4,2592.2,3.85762]
[1730865772561,3.85669,2592.9,2592.3,3.9346803]
[1730865772761,3.85684,2592.8,2592.1,3.85787]
[1730865772996,3.85743,2592.4,2591.9,5.47679058]
[1730865773302,3.85709,2592.7,2591.9,9.33492058]
[1730865773505,0.7721,2593.2,2592.2,3.85761]
[1730865773808,3.85638,2593.1,2592.3,5.47679058]
[1730865773968,3.85638,2593.1,2592.4,3.85729]
[1730865774157,3.85659,2593.0,2592.4,3.85729]
[1730865774362,7.71291,2593.1,2592.4,3.85729]
[1730865774590,3.85663,2593.0,2592.3,5.47679058]
[1730865774833,3.85638,2593.1,2592.4,4.63409]
[1730865774984,3.85638,2593.1,2592.5,3.85726]
[1730865775188,3.85638,2593.1,2592.4,4.63409]
[1730865775387,3.85658,2593.0,2592.4,0.7768]
[1730865775589,4.6284,2593.2,2592.3,5.47679058]
[1730865775795,0.7721,2593.2,2592.6,3.85703]
[1730865776006,0.7721,2593.2,2592.7,3.85695]
[1730865776313,0.7721,2594.1,2592.7,6.25359058]
[1730865776612,3.85546,2593.8,2593.1,3.85636]
[1730865776766,3.85619,2593.3,2592.7,0.7768]
[1730865776967,4.241869,2593.2,2592.6,3.85702]
[1730865777266,4.241869,2593.2,2592.3,0.7768]
[1730865777267,3.85647,2593.1,2592.3,0.7768]
[1730865777471,3.85679,2592.9,2592.3,4.63433]
[1730865777802,3.85679,2592.9,2592.3,0.7768]
[1730865778015,3.85679,2592.9,2591.7,3.85844]
[1730865778016,3.85699,2592.7,2592.0,3.85798]
[1730865778213,0.385619,2593.2,2591.8,0.7768]
[1730865778214,3.85743,2592.4,2591.8,4.63512]
[1730865778730,3.85743,2592.4,2591.7,9.33516058]
[1730865779124,3.85743,2592.4,2591.8,3.85831]
[1730865779632,0.7876,2592.3,2591.8,3.85831]
[1730865779928,4.6452,2592.3,2591.6,3.85857]
[1730865780230,3.85787,2592.1,2591.5,4.63355]
[1730865780401,1.637863,2592.3,2591.2,3.85915]
[1730865780726,3.85724,2592.6,2591.9,3.85806]
[1730865780935,0.7876,2592.6,2592.0,3.85798]
[1730865781091,0.7876,2593.1,2592.4,3.85742]
[1730865781290,0.464394,2593.0,2592.4,3.85742]
[1730865781602,0.464394,2593.0,2592.4,3.85732]
[1730865781807,0.464394,2593.0,2592.3,0.7748]
[1730865781808,3.8568,2592.9,2592.3,0.7748]
[1730865782007,3.85699,2592.7,2592.1,3.85786]
[1730865782210,3.8573,2592.5,2591.9,0.7748]
[1730865782416,0.464394,2593.0,2591.9,0.7748]
[1730865782619,3.85678,2592.9,2592.1,3.85783]
[1730865782888,0.7876,2593.1,2592.1,3.85777]
[1730865783089,3.8568,2592.9,2592.2,3.85766]
[1730865783325,3.8568,2592.9,2592.2,3.8577]
[1730865783699,3.8568,2592.9,2592.1,3.85777]
[1730865783911,3.85713,2592.6,2591.9,4.63284]
[1730865784291,3.85615,2593.3,2592.6,0.7748]
[1730865784516,3.8568,2592.9,2592.3,0.7748]
[1730865784725,4.32124,2592.9,2592.3,4.63227]
[1730865785027,3.8575,2592.4,2591.7,4.63313]
[1730865785237,0.7876,2592.7,2592.1,3.85785]
[1730865785388,3.85715,2592.6,2591.9,7.71613]
[1730865785728,3.85716,2592.6,2591.9,3.85806]
[1730865786039,3.85667,2593.0,2592.5,0.7748]
[1730865786209,4.64413,2593.1,2592.5,4.63207]
[1730865786538,0.7876,2593.1,2592.6,3.85703]
[1730865787041,3.85679,2592.9,2592.1,0.7748]
[1730865787327,3.85715,2592.6,2592.1,0.7748]
[1730865787532,3.85708,2592.7,2592.0,3.93511678]
[1730865787691,3.85758,2592.3,2591.8,0.7748]
[1730865788013,0.7876,2592.6,2591.6,3.85857]
[1730865788227,0.3565611,2592.5,2592.0,3.85791]
[1730865788402,3.85726,2592.6,2591.9,3.85807]
[1730865788601,3.85709,2592.7,2591.9,3.85807]
[1730865788803,1.543487,2592.5,2591.9,3.85807]
[1730865789006,3.8576,2592.3,2591.7,4.63323]
[1730865789224,3.85738,2592.5,2591.8,3.85832]
[1730865789426,3.85763,2592.3,2591.7,0.7748]
[1730865789734,0.7876,2592.3,2591.4,0.7748]
[1730865789961,3.85816,2592.0,2591.4,0.7748]
[1730865790241,0.7876,2592.3,2591.1,0.7748]
[1730865790393,0.7876,2592.3,2591.6,3.85851]
[1730865790394,3.85772,2592.2,2591.6,3.85851]
[1730865790593,3.85772,2592.2,2591.1,4.6341]
[1730865790594,4.322442,2592.1,2591.5,3.85876]
[1730865790816,0.464532,2592.1,2591.5,3.85876]
[1730865791029,3.85773,2592.2,2591.6,3.93576572]
[1730865791239,3.85791,2592.1,2591.5,3.85876]
[1730865791542,3.85773,2592.2,2591.5,3.85866]
[1730865792045,3.85803,2592.0,2591.3,3.85896]
[1730865792347,3.85803,2592.0,2591.1,4.63409]
[1730865792348,3.85834,2591.8,2591.1,0.7748]
[1730865792512,3.85864,2591.6,2591.1,4.63414]
[1730865792709,3.85847,2591.7,2591.1,4.63414]
[1730865793096,3.85863,2591.6,2590.7,3.85989]
[1730865793298,0.7876,2591.1,2590.4,0.7748]
[1730865793523,3.85872,2591.6,2590.9,0.7748]
[1730865793731,4.64632,2591.6,2590.9,0.7748]
[1730865793941,3.85877,2591.5,2590.9,0.7748]
[1730865794095,3.85892,2591.4,2590.9,0.7748]
[1730865794294,3.85907,2591.3,2590.9,0.7748]
[1730865794523,0.9276771,2591.5,2590.3,5.47679058]
[1730865794524,3.85935,2591.2,2590.5,3.86025]
[1730865794718,3.85962,2591.0,2590.4,0.7604]
[1730865794923,3.85962,2591.0,2590.1,4.62121]
[1730865795131,3.85993,2590.8,2590.1,4.62121]
[1730865795344,0.464192,2590.9,2590.1,0.7604]
[1730865795502,3.85966,2590.9,2590.4,0.7604]
[1730865796133,3.859,2591.4,2589.8,3.86126]
[1730865796134,3.86042,2590.4,2589.8,3.86126]
[1730865796351,3.8609,2590.1,2589.6,0.7604]
[1730865796555,3.86119,2589.9,2588.9,3.86253]
[1730865796843,3.86144,2589.8,2589.0,0.0772406]
[1730865796993,3.861,2590.0,2588.9,3.86253]
[1730865796994,3.86146,2589.7,2588.9,3.86253]
[1730865797198,3.8621,2589.3,2588.6,0.7604]
[1730865797470,3.86115,2589.9,2588.6,0.7604]
[1730865797471,3.86226,2589.2,2588.6,0.7604]
[1730865797841,4.64427,2589.4,2588.6,1.23047579]
[1730865798045,3.861,2590.0,2588.7,3.86293]
[1730865798280,0.7823,2589.6,2588.7,0.07724315]
[1730865798434,3.86217,2589.3,2588.6,0.7604]
[1730865798643,3.86217,2589.3,2588.4,3.86333]
[1730865798941,3.86174,2589.5,2588.3,0.7604]
[1730865799155,3.86268,2588.9,2588.3,0.7604]
[1730865799448,3.86268,2588.9,2588.0,55.0]
[1730865799449,3.86367,2588.3,2588.0,55.0]
[1730865799651,3.86357,2588.3,2588.0,55.0]
[1730865799982,0.7823,2589.3,2588.4,3.86336]
[1730865800189,0.7823,2589.3,2588.1,6.23719058]
[1730865800481,0.7823,2589.3,2588.0,58.86396]
[1730865800482,3.86228,2589.2,2588.0,55.0]
[1730865800776,3.86251,2589.0,2588.4,0.7604]
[1730865800976,3.86273,2588.9,2588.1,0.7604]
[1730865801232,3.8624,2589.1,2588.3,3.86339]
[1730865801341,3.8622,2589.2,2588.1,10.10102058]
[1730865801546,3.86283,2588.8,2588.2,3.28947469]
[1730865801742,3.86283,2588.8,2588.1,0.7604]
[1730865802051,3.86329,2588.5,2588.0,55.0]
[1730865802251,0.7823,2588.6,2588.0,55.0]
[1730865802570,3.86365,2588.3,2588.0,55.0]
[1730865802770,3.86383,2588.1,2588.0,55.0]
[1730865802939,3.86358,2588.3,2587.4,0.7604]
[1730865803141,3.86358,2588.3,2587.3,5.47679058]
[1730865803142,3.86427,2587.9,2587.3,5.47679058]
[1730865803567,3.86427,2587.9,2587.0,1.25651028]
[1730865803568,3.86427,2587.9,2587.2,3.86518]
[1730865803794,3.86427,2587.9,2587.0,1.25651028]
[1730865803939,3.8643,2587.8,2587.0,4.62583]
[1730865804146,3.8643,2587.8,2587.0,4.62587]
[1730865804487,3.86457,2587.7,2587.0,0.7604]
[1730865804638,3.8646,2587.6,2587.0,0.7604]
[1730865804845,0.7923,2588.1,2586.7,0.7604]
[1730865805048,3.86523,2587.2,2586.7,0.7604]
[1730865805251,3.86551,2587.0,2586.7,0.7604]
[1730865805544,3.86596,2586.7,2586.0,0.7604]
[1730865806058,0.386551,2587.0,2585.7,3.9929961]
[1730865806059,4.6484,2586.6,2585.7,0.1256361]
[1730865806381,3.86678,2586.2,2585.7,0.1256361]
[1730865806599,0.7823,2586.6,2585.7,0.1256361]
[1730865806600,3.86719,2585.9,2585.7,0.1256361]
[1730865806881,7.64957,2585.8,2585.7,0.1256361]
[1730865807278,8.19957,2585.8,2585.7,0.1256361]
[1730865807590,3.86824,2585.2,2585.0,25.0]
[1730865807768,3.86822,2585.2,2585.0,25.0]
[1730865808083,3.86832,2585.1,2585.0,25.0]
[1730865808582,8.424256,2585.1,2585.0,25.0]
[1730865808811,8.974256,2585.1,2585.0,25.0]
[1730865808977,8.424256,2585.1,2585.0,25.0]
[1730865809311,8.974256,2585.1,2585.0,23.90088931]
[1730865809495,9.37472383,2585.1,2585.0,13.10524975]
[1730865809667,9.37472383,2585.1,2583.6,3.87055]
[1730865809668,3.86939,2584.4,2583.6,3.87055]
[1730865810044,3.86953,2584.3,2583.4,4.67722]
[1730865810221,0.01,2584.8,2583.4,0.8064]
[1730865810367,0.7927,2584.6,2583.9,3.87009]
[1730865810562,0.7927,2584.6,2583.4,0.7564]
[1730865810563,0.7927,2584.6,2583.4,4.62719]
[1730865810889,0.60598578,2584.5,2583.8,6.0877807]
[1730865811095,4.66043,2585.5,2584.3,6.0877807]
[1730865811404,0.60586059,2585.5,2584.8,6.0877807]
[1730865811612,0.8027,2586.1,2584.8,9.9564007]
[1730865811781,3.86743,2585.7,2584.9,3.86859]
[1730865812101,0.60569646,2585.8,2584.9,5.25105607]
[1730865812261,0.60569646,2585.8,2585.0,3.8684]
[1730865812461,0.60569646,2585.8,2585.2,3.86805]
[1730865812690,3.8664,2586.4,2585.6,3.86755]
[1730865812894,0.60558734,2586.2,2585.3,6.0877807]
[1730865813109,0.7927,2586.1,2584.2,0.01]
[1730865813268,3.86755,2585.7,2584.8,3.86866]
[1730865813468,0.7927,2586.1,2584.2,0.56]
[1730865813469,3.86712,2585.9,2584.6,6.8941807]
[1730865813778,0.7927,2586.1,2585.4,3.86783]
[1730865813979,0.60558734,2586.2,2585.1,6.0877807]
[1730865814199,0.60558734,2586.2,2585.6,3.86755]
[1730865814500,0.60558734,2586.2,2585.4,3.86786]
[1730865814914,0.60558734,2586.2,2585.3,3.86802]
[1730865815267,0.60558734,2586.2,2585.4,3.86775]
[1730865815470,0.60558734,2586.2,2585.3,3.94536984]
[1730865815687,0.60558734,2586.2,2585.5,3.8677]
[1730865815964,0.60558734,2586.2,2585.2,1.41517807]
[1730865816172,0.60558734,2586.2,2585.6,3.86743]
[1730865816824,0.60558734,2586.2,2585.2,1.41517807]
[1730865817223,0.60558734,2586.2,2585.6,3.86744]
[1730865817403,0.60558734,2586.2,2585.2,1.41517807]
[1730865817606,0.60558734,2586.2,2585.3,1.13711688]
[1730865817807,0.67321107,2586.2,2585.3,1.13711688]
[1730865818014,0.60558734,2586.2,2585.7,3.86729]
[1730865818347,0.60558734,2586.2,2585.8,0.0773399]
[1730865818643,3.8664,2586.4,2585.3,1.13711688]
[1730865818935,0.06762373,2586.3,2585.2,0.8064]
[1730865819432,0.06762373,2586.3,2585.4,3.86777]
[1730865819634,3.93416373,2586.3,2585.5,3.86771]
[1730865819942,3.86671,2586.2,2585.4,3.81784]
[1730865820112,0.06762373,2586.1,2585.5,3.86769]
[1730865820313,0.06762373,2586.3,2585.5,3.86769]
[1730865820533,0.63227805,2586.3,2585.5,3.86769]
[1730865821249,0.63227805,2586.3,2585.3,3.86799]
[1730865821536,3.8667,2586.2,2585.2,0.8064]
[1730865821698,3.8667,2586.2,2585.4,3.86786]
[1730865821699,0.06762373,2586.1,2585.4,3.86786]
[1730865821899,0.7927,2586.0,2585.1,3.86817]
[1730865822102,0.06762373,2585.9,2584.5,6.89748573]
[1730865822412,0.7927,2584.9,2584.1,4.67608]
[1730865822598,0.7927,2584.9,2584.1,0.8064]
[1730865822803,3.86923,2584.5,2583.8,3.87026]
[1730865823023,0.06762373,2584.4,2583.5,4.67708]
[1730865823258,0.7927,2584.2,2583.2,0.9320361]
[1730865823400,0.06762373,2584.1,2583.6,3.87055]
[1730865823710,0.06762373,2584.1,2583.3,0.07739967]
[1730865823912,0.06762373,2584.5,2583.9,3.86997]
[1730865824115,0.06762373,2584.5,2584.0,3.8699]
[1730865824427,0.7784,2584.0,2583.3,3.87097]
[1730865824629,3.93783373,2583.9,2583.2,0.9320361]
[1730865824835,0.06762373,2583.9,2583.2,1.0094516]
[1730865825217,0.7784,2584.0,2583.4,3.87085]
[1730865825551,0.06762373,2584.0,2583.4,4.35888016]
[1730865825710,0.06762373,2584.2,2583.4,4.35888016]
[1730865825909,0.06762373,2584.0,2583.4,4.35888016]
[1730865826445,3.93759373,2584.0,2583.3,3.87099]
[1730865826753,3.93759373,2584.0,2583.2,0.9320361]
[1730865827044,3.87015,2583.9,2583.2,0.9320361]
[1730865827249,3.93793373,2583.8,2583.2,0.1256361]
[1730865827437,4.7187251,2583.8,2583.2,0.1256361]
[1730865827635,0.8484151,2583.8,2583.2,3.9967861]
[1730865827954,0.8484151,2583.8,2583.3,3.87101]
[1730865828152,0.7784,2585.2,2584.3,3.86949]
[1730865828358,3.86849,2585.0,2584.3,3.86949]
[1730865828651,0.06762373,2584.9,2584.1,6.09108573]
[1730865828949,0.06762373,2584.9,2583.5,6.09108573]
[1730865829155,0.06762373,2584.9,2584.0,6.84248573]
[1730865829358,0.7784,2585.0,2584.4,3.86934]
[1730865829582,0.7784,2585.0,2584.5,3.94655987]
[1730865829853,0.7784,2585.0,2584.1,0.07737635]
[1730865830081,0.84602373,2585.4,2584.8,3.86874]
[1730865830363,3.86764,2585.6,2584.0,3.86992]
[1730865830364,3.86894,2584.7,2584.0,3.86992]
[1730865830518,0.84602373,2584.6,2583.8,4.62166]
[1730865830707,0.84602373,2584.6,2584.1,3.86979]
[1730865830950,1.3175081,2584.6,2583.4,6.09108573]
[1730865831151,1.3175081,2584.6,2583.2,0.1256361]
[1730865831152,0.7784,2584.2,2583.2,0.1256361]
[1730865831370,3.87101,2583.3,2583.2,0.1256361]
[1730865831521,8.27703373,2583.3,2583.2,6.1e-06]
[1730865831723,1.3284,2582.8,2581.4,0.7514]
[1730865832067,1.3284,2582.8,2580.8,0.01]
[1730865832068,0.7784,2582.0,2581.0,3.87444]
[1730865832347,3.87342,2581.7,2580.9,4.62601]
[1730865832520,0.06762373,2581.9,2581.0,0.07747996]
[1730865832729,3.94087373,2581.9,2580.9,0.7514]
[1730865832924,3.94087373,2581.9,2580.6,0.1256361]
[1730865832925,3.87424,2581.2,2580.6,0.1256361]
[1730865833139,0.06762373,2581.1,2580.6,0.1256361]
[1730865833544,0.7784,2581.0,2580.6,0.1256361]
[1730865833746,1.25032737,2581.8,2580.6,0.8770361]
[1730865834056,0.7784,2582.6,2581.8,3.87317]
[1730865834238,0.06762373,2582.5,2581.5,3.87371]
[1730865834525,0.06762373,2582.5,2581.6,6.09108573]
[1730865834818,0.06762373,2582.5,2581.6,9.96463573]
[1730865835199,0.06762373,2582.5,2581.6,6.09108573]
[1730865835503,0.7784,2582.6,2581.6,6.09108573]
[1730865835504,0.7784,2582.6,2581.9,3.87311]
[1730865835809,3.87253,2582.3,2581.4,0.7514]
[1730865835982,0.06762373,2582.2,2581.4,0.7514]
[1730865836512,0.06762373,2582.2,2581.1,6.09108573]
[1730865836513,3.87313,2581.9,2581.1,6.84248573]
[1730865836678,3.94089373,2581.8,2580.7,0.7514]
[1730865836882,3.94089373,2581.8,2580.6,0.1256361]
[1730865836883,0.47192937,2581.7,2580.6,0.1256361]
[1730865837174,3.87386,2581.4,2580.6,0.1256361]
[1730865837394,0.06762373,2581.3,2580.6,0.1256361]
[1730865837597,0.7784,2581.2,2580.6,0.1256361]
[1730865837763,0.06762373,2581.1,2580.6,0.1256361]
[1730865838579,3.94200373,2581.1,2580.6,0.1256361]
[1730865838975,4.4140441,2581.1,2580.6,0.1256361]
[1730865839172,0.5396641,2581.1,2580.6,0.1256361]
[1730865839488,0.8145,2580.9,2580.6,0.1256361]
[1730865839801,0.06762373,2580.8,2580.6,0.1256361]
[1730865840204,0.8145,2580.9,2580.6,0.1256361]
[1730865840526,0.06762373,2581.1,2580.6,0.1256361]
[1730865840678,0.8145,2581.3,2580.6,0.1256361]
[1730865840679,0.06762373,2580.8,2580.6,0.1256361]
[1730865840877,3.94208373,2581.0,2580.6,0.1256361]
[1730865841090,0.8492531,2581.0,2580.6,0.1256361]
[1730865841378,0.06762373,2581.0,2580.6,0.1256361]
[1730865841614,3.87436,2581.1,2580.6,0.1256361]
[1730865841819,0.06762373,2581.0,2580.6,0.1256361]
[1730865841978,0.40095275,2581.3,2580.7,0.0774928]
[1730865842180,0.06762373,2581.8,2581.0,9.96553573]
[1730865842379,0.06762373,2581.9,2581.1,0.99655357]
[1730865842588,0.88212373,2582.0,2581.2,0.07747554]
[1730865842880,0.88212373,2582.0,2581.1,0.99655357]
[1730865842881,0.8145,2582.0,2581.3,0.8165]
[1730865843076,0.8145,2582.4,2581.7,3.87338]
[1730865843306,0.06762373,2582.6,2581.6,6.09108573]
[1730865843505,0.8145,2582.8,2582.1,6.09108573]
[1730865843708,0.06762373,2582.9,2582.1,6.09108573]
[1730865844092,0.06762373,2582.9,2581.2,0.8165]
[1730865844093,3.87297,2582.0,2581.2,0.8165]
[1730865844280,0.06762373,2581.9,2581.2,1.99434493]
[1730865844577,0.06762373,2581.9,2580.6,6.21672183]
[1730865844578,3.87388,2581.4,2580.6,6.21672183]
[1730865844777,0.06762373,2581.3,2580.6,0.1256361]
[1730865844981,3.94177373,2581.3,2580.6,0.1256361]
[1730865845224,3.87491,2580.7,2580.6,0.1256361]
[1730865845526,4.75703373,2580.7,2580.6,0.1256361]
[1730865845677,0.06762373,2580.8,2580.6,0.1256361]
[1730865845882,3.87442,2581.1,2580.6,0.1256361]
[1730865846123,0.06762373,2581.0,2580.6,0.1256361]
[1730865846288,3.94167373,2581.3,2580.6,0.1256361]
[1730865846494,0.06762373,2581.3,2580.6,0.1256361]
[1730865846693,3.87444,2581.1,2580.6,0.1256361]
[1730865846890,0.06762373,2581.0,2580.6,0.1256361]
[1730865847306,3.87476,2580.9,2580.6,0.1256361]
[1730865847613,4.68941,2580.7,2580.6,0.1256361]
[1730865848397,8.55258937,2580.7,2580.6,6.1e-06]
[1730865848598,9.10258937,2580.7,2580.6,6.1e-06]
[1730865849620,13.17058937,2580.7,2580.6,6.1e-06]
[1730865849832,7.69031,2580.1,2580.0,2.64204545]
[1730865850037,8.91552873,2580.1,2580.0,2.64204545]
[1730865850328,0.8145,2580.1,2580.0,2.64204545]
[1730865850509,4.75793373,2580.1,2580.0,2.64204545]
[1730865852122,3.87758,2579.0,2578.5,6.09108573]
[1730865852425,3.87654,2579.7,2578.6,0.07755155]
[1730865852638,0.06762373,2579.6,2578.5,6.7818443]
[1730865852796,0.8145,2580.0,2578.8,3.87777]
[1730865852797,3.87653,2579.7,2578.8,3.87777]
[1730865852982,3.87638,2579.8,2578.8,3.87777]
[1730865853323,3.94406373,2579.7,2578.9,0.387777]
[1730865853524,3.87718,2579.2,2578.7,0.07753856]
[1730865853819,3.87718,2579.2,2578.6,0.8165]
[1730865853820,3.87749,2579.0,2578.6,0.8165]
[1730865854031,3.87749,2579.0,2578.5,6.7818443]
[1730865854032,0.06762373,2579.1,2578.1,0.8165]
[1730865854239,3.0,2579.4,2578.1,0.8165]
[1730865854403,3.87818,2578.6,2578.1,0.8165]
[1730865854922,3.87818,2578.6,2578.2,0.07756443]
[1730865855085,3.87825,2578.5,2578.1,0.8165]
[1730865855290,3.87822,2578.5,2578.1,0.8165]
[1730865855597,3.87822,2578.5,2578.0,0.1256361]
[1730865855799,0.8145,2578.9,2578.1,0.8165]
[1730865855800,0.06762373,2578.8,2578.1,0.8165]
[1730865856000,3.87737,2579.1,2578.4,3.87836]
[1730865856235,0.8145,2579.3,2578.2,1.09121718]
[1730865856523,3.94489373,2579.2,2578.3,0.0775608]
[1730865856735,3.94489373,2579.2,2578.0,6.21672183]
[1730865856736,0.40074372,2579.2,2578.6,0.8165]
[1730865857038,0.06762373,2579.5,2579.0,6.09108573]
[1730865857189,0.40094042,2579.7,2579.4,0.8165]
[1730865857389,3.94395373,2579.8,2579.4,0.8165]
[1730865857599,23.67607,2580.0,2579.4,0.8165]
[1730865857832,3.87628,2579.8,2579.4,0.8165]
[1730865858211,0.06762373,2579.7,2579.1,0.8165]
[1730865858433,3.87657,2579.6,2579.2,0.0775353]
[1730865858589,3.87657,2579.6,2579.1,0.8165]
[1730865859088,19.8,2580.0,2579.1,1.285907]
[1730865859089,3.94404373,2579.7,2579.1,1.285907]
[1730865859315,3.87642,2579.7,2579.1,0.8165]
[1730865859642,0.8145,2579.7,2578.8,0.8165]